fUSD/lending_fUSD_20250311
["ID","MTS","AMOUNT","RATE_DAILY","PERIOD"]
[355941911,1741723847722,-523.22,8.991e-05,2]
[355941913,1741723847731,-500.0,8.991e-05,2]
[355941915,1741723847740,-789.44,8.991e-05,2]
[355941917,1741723847750,-1425.32,8.991e-05,2]
[355941919,1741723847759,-500.0,8.991e-05,2]
[355941921,1741723847768,-500.0,8.991e-05,2]
[355941923,1741723847778,-500.0,8.991e-05,2]
[355941925,1741723847787,-500.0,8.991e-05,2]
[355941927,1741723847797,-500.0,8.991e-05,2]
[355941929,1741723847807,-1072.08,8.991e-05,2]
[355941931,1741723847816,-769.47,8.991e-05,2]
[355941933,1741723847827,-500.0,8.991e-05,2]
[355941935,1741723847836,-500.0,8.991e-05,2]
[355941937,1741723847845,-948.58,8.991e-05,2]
[355941939,1741723847854,-1111.09,8.991e-05,2]
[355941941,1741723847864,-991.0,8.991e-05,2]
[355941943,1741723847873,-500.0,8.991e-05,2]
[355941945,1741723847882,-1266.2,8.991e-05,2]
[355941947,1741723847892,-944.52,8.991e-05,2]
[355941949,1741723847901,-1611.01,8.991e-05,2]
[355941951,1741723847911,-962.71,8.991e-05,2]
[355941953,1741723847920,-549.07,8.991e-05,2]
[355941955,1741723847929,-500.0,8.991e-05,2]
[355941957,1741723847938,-500.0,8.991e-05,2]
[355941959,1741723847948,-506.49,8.991e-05,2]
[355941961,1741723847957,-500.0,8.991e-05,2]
[355941963,1741723847966,-500.0,8.991e-05,2]
[355941965,1741723847975,-716.62,8.991e-05,2]
[355941966,1741723847984,-500.0,8.991e-05,2]
[355941968,1741723847993,-968.24,8.991e-05,2]
[355941970,1741723848002,-500.0,8.991e-05,2]
[355941972,1741723848012,-527.27,8.991e-05,2]
[355941974,1741723848021,-500.0,8.991e-05,2]
[355941976,1741723848031,-1291.65,8.991e-05,2]
[355941978,1741723848040,-745.1,8.991e-05,2]
[355941980,1741723848049,-1016.36,8.991e-05,2]
[355941982,1741723848059,-500.0,8.991e-05,2]
[355941984,1741723848068,-1718.92,8.991e-05,2]
[355941986,1741723848078,-500.0,8.991e-05,2]
[355941988,1741723848087,-1117.74,8.991e-05,2]
[355941990,1741723848096,-171.18049377,8.991e-05,2]
[355941992,1741723848106,-1131.11,8.991e-05,2]
[355941994,1741723848116,-500.0,8.991e-05,2]
[355941996,1741723848126,-647.01800141,8.991e-05,2]
[355941998,1741723848136,-978.26,8.991e-05,2]
[355942000,1741723848145,-790.01,8.991e-05,2]
[355942002,1741723848156,-959.1,8.991e-05,2]
[355942004,1741723848166,-649.64,8.991e-05,2]
[355942006,1741723848176,-1388.14,8.991e-05,2]
[355942008,1741723848185,-878.72,8.991e-05,2]
[355942010,1741723848196,-500.0,8.991e-05,2]
[355942012,1741723848206,-1518.53,8.991e-05,2]
[355942014,1741723848215,-824.77,8.991e-05,2]
[355942016,1741723848225,-500.0,8.991e-05,2]
[355942018,1741723848235,-500.0,8.991e-05,2]
[355942020,1741723848244,-824.7,8.991e-05,2]
[355942022,1741723848254,-858.51,8.991e-05,2]
[355942024,1741723848264,-598.34375042,8.991e-05,2]
[355942026,1741723848277,-513.12,8.991e-05,2]
[355942028,1741723848286,-500.0,8.991e-05,2]
[355942030,1741723848298,-500.0,8.991e-05,2]
[355942032,1741723848308,-500.0,8.991e-05,2]
[355942034,1741723848319,-500.0,8.991e-05,2]
[355942036,1741723848328,-500.0,8.992e-05,2]
[355942038,1741723848338,-500.0,8.992e-05,2]
[355942040,1741723848348,-552.0012858,8.992e-05,2]
[355942063,1741723848563,-500.0,8.992e-05,2]
[355942065,1741723848574,-500.0,8.992e-05,2]
[355942067,1741723848583,-500.0,8.992e-05,2]
[355942069,1741723848592,-500.0,8.992e-05,2]
[355942071,1741723848601,-593.84136636,8.992e-05,2]
[355942073,1741723848611,-539.2616976,8.992e-05,2]
[355942075,1741723848620,-268.31881841,8.992e-05,2]
[355942077,1741723848630,-637.69598373,8.992e-05,2]
[355942079,1741723848640,-500.0,8.992e-05,2]
[355942081,1741723848649,-500.0,8.992e-05,2]
[355942083,1741723848660,-644.08,8.992e-05,2]
[355942085,1741723848669,-868.91,8.992e-05,2]
[355942087,1741723848678,-1434.84,8.992e-05,2]
[355942089,1741723848687,-500.0,8.992e-05,2]
[355942091,1741723848697,-500.0,8.992e-05,2]
[355942093,1741723848706,-521.54,8.992e-05,2]
[355942095,1741723848715,-500.0,8.992e-05,2]
[355942097,1741723848725,-503.5238846,8.992e-05,2]
[355942099,1741723848735,-606.11,8.992e-05,2]
[355942101,1741723848744,-500.0,8.992e-05,2]
[355942103,1741723848753,-500.0,8.992e-05,2]
[355942104,1741723848762,-500.0,8.992e-05,2]
[355942106,1741723848772,-500.0,8.992e-05,2]
[355942108,1741723848781,-513.04723796,8.992e-05,2]
[355942110,1741723848790,-509.0,8.992e-05,2]
[355942112,1741723848799,-608.32,8.992e-05,2]
[355942114,1741723848808,-681.99,8.992e-05,2]
[355942116,1741723848817,-500.0,8.992e-05,2]
[355942118,1741723848827,-611.39270557,8.992e-05,2]
[355942120,1741723848837,-734.02,8.992e-05,2]
[355942122,1741723848847,-500.0,8.992e-05,2]
[355942124,1741723848856,-500.0,8.992e-05,2]
[355942126,1741723848865,-500.0,8.992e-05,2]
[355942128,1741723848875,-500.0,8.992e-05,2]
[355942130,1741723848884,-500.0,8.992e-05,2]
[355942132,1741723848894,-500.0,8.992e-05,2]
[355942134,1741723848904,-920.66,8.992e-05,2]
[355942136,1741723848914,-1478.64,8.992e-05,2]
[355942138,1741723848924,-500.0,8.992e-05,2]
[355942140,1741723848933,-500.0,8.992e-05,2]
[355942142,1741723848943,-500.0,8.992e-05,2]
[355942144,1741723848953,-500.0,8.992e-05,2]
[355942146,1741723848963,-500.0,8.992e-05,2]
[355942149,1741723848973,-500.0,8.992e-05,2]
[355942150,1741723848982,-500.0,8.992e-05,2]
[355942152,1741723848992,-500.0,8.992e-05,2]
[355942154,1741723849001,-500.0,8.992e-05,2]
[355942156,1741723849011,-500.0,8.992e-05,2]
[355942158,1741723849021,-1831.28,8.992e-05,2]
[355942160,1741723849031,-718.33,8.992e-05,2]
[355942162,1741723849042,-551.76,8.992e-05,2]
[355942164,1741723849051,-500.0,8.992e-05,2]
[355942166,1741723849061,-500.0,8.992e-05,2]
[355942168,1741723849070,-500.0,8.992e-05,2]
[355942170,1741723849080,-500.0,8.992e-05,2]
[355942172,1741723849089,-1113.59,8.992e-05,2]
[355942174,1741723849099,-500.0,8.992e-05,2]
[355942176,1741723849108,-590.25,8.992e-05,2]
[355942178,1741723849118,-500.0,8.992e-05,2]
[355942181,1741723849127,-244.65806067,8.992e-05,2]
[355942183,1741723849137,-1131.93,8.992e-05,2]
[355942185,1741723849146,-500.0,8.992e-05,2]
[355942187,1741723849155,-1073.11,8.992e-05,2]
[355942189,1741723849166,-500.0,8.992e-05,2]
[355942191,1741723849175,-500.0,8.992e-05,2]
[355942193,1741723849185,-500.0,8.992e-05,2]
[355942195,1741723849195,-674.18,8.992e-05,2]
[355942197,1741723849204,-500.0,8.992e-05,2]
[355942199,1741723849214,-500.0,8.992e-05,2]
[355942201,1741723849223,-500.0,8.992e-05,2]
[355942203,1741723849233,-500.0,8.992e-05,2]
[355942204,1741723849244,-500.0,8.992e-05,2]
[355942207,1741723849254,-500.0,8.992e-05,2]
[355942209,1741723849264,-503.61,8.992e-05,2]
[355942211,1741723849279,-1733.41,8.992e-05,2]
[355942213,1741723849289,-991.99,8.992e-05,2]
[355942215,1741723849299,-500.0,8.992e-05,2]
[355942217,1741723849309,-605.3968649,8.992e-05,2]
[355942219,1741723849320,-1517.57,8.992e-05,2]
[355942221,1741723849330,-607.3,8.992e-05,2]
[355942223,1741723849340,-500.0,8.992e-05,2]
[355942225,1741723849351,-500.0,8.992e-05,2]
[355942245,1741723849362,-500.0,8.992e-05,2]
[355942249,1741723849571,-500.0,8.992e-05,2]
[355942251,1741723849582,-500.0,8.992e-05,2]
[355942253,1741723849592,-500.0,8.992e-05,2]
[355942255,1741723849602,-749.18,8.992e-05,2]
[355942257,1741723849611,-500.0,8.992e-05,2]
[355942259,1741723849621,-1017.2,8.992e-05,2]
[355942261,1741723849632,-643.73,8.992e-05,2]
[355942263,1741723849642,-1494.69,8.992e-05,2]
[355942265,1741723849652,-500.0,8.992e-05,2]
[355942267,1741723849662,-500.0,8.992e-05,2]
[355942269,1741723849672,-741.22,8.992e-05,2]
[355942271,1741723849682,-1000.0,9e-05,3]
[355942274,1741723849692,-550.0,9e-05,2]
[355942276,1741723849702,-1278.0,9.093e-05,2]
[355942278,1741723849712,-641.0,9.093e-05,2]
[355942280,1741723849723,-571.0,9.093e-05,2]
[355942281,1741723849732,-1459.0,9.093e-05,2]
[355942283,1741723849741,-786.0,9.093e-05,2]
[355942285,1741723849751,-1428.0,9.093e-05,2]
[355942287,1741723849760,-907.0,9.093e-05,2]
[355942289,1741723849770,-541.0,9.093e-05,2]
[355942292,1741723849783,-1270.0,9.093e-05,2]
[355942293,1741723849793,-4077.0,9.093e-05,2]
[355942295,1741723849803,-3932.0,9.093e-05,2]
[355942297,1741723849813,-150.0,9.093e-05,2]
[355942300,1741723849823,-1012.0,9.093e-05,2]
[355942302,1741723849832,-291.92,9.1e-05,2]
[355942304,1741723849842,-2033.0,9.104e-05,2]
[355942305,1741723849851,-268.4693,9.166e-05,2]
[355942307,1741723849860,-380.0,9.233e-05,2]
[355942309,1741723849870,-482.87938356,9.263e-05,2]
[355942311,1741723849879,-500.0,9.263e-05,2]
[355942314,1741723849889,-500.0,9.263e-05,2]
[355942316,1741723849899,-500.0,9.263e-05,2]
[355942317,1741723849910,-494.65206173,9.263e-05,2]
[355942319,1741723849920,-500.0,9.263e-05,2]
[355942321,1741723849930,-500.0,9.263e-05,2]
[355942323,1741723849940,-1413.3,9.263e-05,2]
[355942326,1741723849950,-876.1,9.263e-05,2]
[355942327,1741723849960,-557.23,9.263e-05,2]
[355942330,1741723849970,-665.35,9.263e-05,2]
[355942332,1741723849979,-840.14,9.264e-05,2]
[355942333,1741723849989,-716.52,9.264e-05,2]
[355942335,1741723849999,-500.0,9.264e-05,2]
[355942338,1741723850009,-566.34261151,9.264e-05,2]
[355942340,1741723850019,-769.54,9.264e-05,2]
[355942341,1741723850029,-463.36276584,9.264e-05,2]
[355942343,1741723850039,-1561.84,9.264e-05,2]
[355942345,1741723850049,-500.0,9.264e-05,2]
[355942347,1741723850059,-1002.46,9.264e-05,2]
[355942349,1741723850068,-500.0,9.264e-05,2]
[355942351,1741723850078,-500.0,9.264e-05,2]
[355942353,1741723850088,-620.84,9.264e-05,2]
[355942355,1741723850097,-500.0,9.264e-05,2]
[355942357,1741723850107,-500.0,9.264e-05,2]
[355942359,1741723850116,-500.0,9.264e-05,2]
[355942361,1741723850126,-500.0,9.264e-05,2]
[355942363,1741723850136,-1218.08,9.264e-05,2]
[355942365,1741723850145,-500.0,9.264e-05,2]
[355942367,1741723850156,-500.0,9.264e-05,2]
[355942368,1741723850167,-523.2,9.264e-05,2]
[355942369,1741723850177,-987.68,9.264e-05,2]
[355942370,1741723850187,-1568.19,9.264e-05,2]
[355942371,1741723850197,-500.0,9.264e-05,2]
[355942372,1741723850206,-868.96,9.264e-05,2]
[355942373,1741723850215,-1262.46,9.264e-05,2]
[355942374,1741723850224,-500.0,9.264e-05,2]
[355942375,1741723850233,-500.0,9.264e-05,2]
[355942376,1741723850242,-598.65,9.264e-05,2]
[355942377,1741723850252,-595.99810681,9.264e-05,2]
[355942378,1741723850261,-500.0,9.264e-05,2]
[355942379,1741723850272,-500.0,9.264e-05,2]
[355942380,1741723850286,-604.75,9.264e-05,2]
[355942381,1741723850295,-472.86935129,9.264e-05,2]
[355942382,1741723850305,-500.0,9.264e-05,2]
[355942383,1741723850314,-500.0,9.264e-05,2]
[355942384,1741723850323,-1369.24,9.264e-05,2]
[355942385,1741723850333,-500.0,9.264e-05,2]
[355942386,1741723850342,-850.61,9.264e-05,2]
[355942387,1741723850354,-1338.91,9.264e-05,2]
[355942388,1741723850363,-500.0,9.264e-05,2]
[355942389,1741723850373,-500.0,9.264e-05,2]
[355942390,1741723850382,-430.10481701,9.264e-05,2]
[355942391,1741723850391,-564.52,9.264e-05,2]
[355942392,1741723850401,-500.0,9.264e-05,2]
[355942393,1741723850411,-500.0,9.264e-05,2]
[355942394,1741723850420,-1529.37,9.264e-05,2]
[355942395,1741723850429,-321.06242254,9.264e-05,2]
[355942397,1741723850438,-691.56,9.264e-05,2]
[355942398,1741723850450,-1255.7,9.264e-05,2]
[355942400,1741723850459,-556.16,9.264e-05,2]
[355942402,1741723850469,-500.0,9.264e-05,2]
[355942404,1741723850479,-518.8,9.264e-05,2]
[355942406,1741723850488,-500.0,9.264e-05,2]
[355942408,1741723850498,-500.0,9.264e-05,2]
[355942410,1741723850508,-500.0,9.264e-05,2]
[355942412,1741723850517,-500.0,9.264e-05,2]
[355942414,1741723850527,-500.0,9.264e-05,2]
[355942416,1741723850536,-1649.76,9.264e-05,2]
[355942417,1741723850546,-500.0,9.264e-05,2]
[355942418,1741723850555,-500.0,9.264e-05,2]
[355942419,1741723850564,-1439.56,9.264e-05,2]
[355942420,1741723850574,-500.0,9.264e-05,2]
[355942421,1741723850583,-500.0,9.264e-05,2]
[355942422,1741723850593,-500.0,9.264e-05,2]
[355942423,1741723850602,-851.6,9.264e-05,2]
[355942424,1741723850611,-500.0,9.264e-05,2]
[355942425,1741723850621,-500.0,9.264e-05,2]
[355942426,1741723850630,-500.0,9.264e-05,2]
[355942427,1741723850639,-500.0,9.264e-05,2]
[355942428,1741723850649,-500.0,9.264e-05,2]
[355942429,1741723850658,-1510.09,9.264e-05,2]
[355942430,1741723850667,-906.29,9.264e-05,2]
[355942431,1741723850677,-529.37,9.264e-05,2]
[355942432,1741723850686,-500.0,9.264e-05,2]
[355942433,1741723850695,-1359.51,9.264e-05,2]
[355942434,1741723850704,-500.0,9.264e-05,2]
[355942435,1741723850714,-511.48,9.264e-05,2]
[355942436,1741723850723,-705.91,9.264e-05,2]
[355942437,1741723850733,-500.0,9.264e-05,2]
[355942438,1741723850742,-500.0,9.264e-05,2]
[355942439,1741723850751,-795.45,9.264e-05,2]
[355942440,1741723850761,-500.0,9.264e-05,2]
[355942441,1741723850771,-500.0,9.264e-05,2]
[355942442,1741723850780,-816.34,9.264e-05,2]
[355942443,1741723850790,-500.0,9.264e-05,2]
[355942444,1741723850800,-500.0,9.264e-05,2]
[355942445,1741723850810,-740.26,9.264e-05,2]
[355942446,1741723850819,-500.0,9.264e-05,2]
[355942447,1741723850829,-881.59,9.264e-05,2]
[355942448,1741723850838,-637.82374794,9.264e-05,2]
[355942449,1741723850847,-1347.898258,9.264e-05,2]
[355942450,1741723850857,-590.67,9.264e-05,2]
[355942451,1741723850866,-500.0,9.264e-05,2]
[355942452,1741723850876,-826.55,9.264e-05,2]
[355942453,1741723850886,-580.37,9.264e-05,2]
[355942454,1741723850895,-1068.38,9.264e-05,2]
[355942455,1741723850905,-766.3,9.264e-05,2]
[355942456,1741723850917,-500.0,9.264e-05,2]
[355942457,1741723850926,-574.24,9.264e-05,2]
[355942458,1741723850935,-500.0,9.264e-05,2]
[355942459,1741723850945,-1572.16,9.264e-05,2]
[355942460,1741723850954,-500.0,9.264e-05,2]
[355942461,1741723850964,-1324.41,9.264e-05,2]
[355942462,1741723850973,-553.26,9.264e-05,2]
[355942463,1741723850983,-683.26,9.264e-05,2]
[355942464,1741723850993,-500.0,9.264e-05,2]
[355942465,1741723851002,-500.0,9.264e-05,2]
[355942466,1741723851011,-500.0,9.264e-05,2]
[355942467,1741723851021,-781.64,9.264e-05,2]
[355942468,1741723851031,-1613.6,9.264e-05,2]
[355942469,1741723851041,-1616.76,9.264e-05,2]
[355942470,1741723851050,-500.0,9.264e-05,2]
[355942471,1741723851059,-500.0,9.264e-05,2]
[355942472,1741723851068,-500.0,9.264e-05,2]
[355942473,1741723851077,-500.0,9.264e-05,2]
[355942474,1741723851087,-1254.6,9.264e-05,2]
[355942475,1741723851097,-774.83,9.264e-05,2]
[355942476,1741723851106,-500.0,9.264e-05,2]
[355942477,1741723851116,-500.0,9.264e-05,2]
[355942478,1741723851126,-500.0,9.264e-05,2]
[355942479,1741723851136,-519.96,9.264e-05,2]
[355942480,1741723851145,-628.29,9.264e-05,2]
[355942481,1741723851155,-500.0,9.264e-05,2]
[355942482,1741723851167,-500.0,9.264e-05,2]
[355942483,1741723851177,-815.12,9.264e-05,2]
[355942484,1741723851186,-940.75,9.264e-05,2]
[355942485,1741723851196,-1241.81,9.264e-05,2]
[355942486,1741723851205,-1479.53,9.264e-05,2]
[355942487,1741723851215,-500.0,9.264e-05,2]
[355942488,1741723851225,-876.59,9.264e-05,2]
[355942489,1741723851234,-850.31,9.264e-05,2]
[355942490,1741723851243,-500.0,9.264e-05,2]
[355942491,1741723851253,-500.0,9.264e-05,2]
[355942492,1741723851263,-666.93,9.264e-05,2]
[355942493,1741723851276,-359.54051274,9.264e-05,2]
[355942494,1741723851286,-716.57,9.264e-05,2]
[355942495,1741723851296,-639.94,9.264e-05,2]
[355942496,1741723851305,-500.0,9.264e-05,2]
[355942497,1741723851315,-500.0,9.264e-05,2]
[355942498,1741723851324,-646.78,9.264e-05,2]
[355942499,1741723851333,-500.0,9.264e-05,2]
[355942500,1741723851343,-500.0,9.264e-05,2]
[355942501,1741723851353,-500.0,9.264e-05,2]
[355942502,1741723851364,-822.95,9.264e-05,2]
[355942503,1741723851373,-868.64,9.264e-05,2]
[355942504,1741723851382,-500.0,9.264e-05,2]
[355942505,1741723851392,-1096.23,9.264e-05,2]
[355942506,1741723851401,-500.0,9.264e-05,2]
[355942507,1741723851411,-584.02,9.264e-05,2]
[355942508,1741723851421,-500.0,9.264e-05,2]
[355942509,1741723851430,-538.2,9.264e-05,2]
[355942510,1741723851440,-500.0,9.264e-05,2]
[355942511,1741723851450,-500.0,9.264e-05,2]
[355942512,1741723851460,-500.0,9.264e-05,2]
[355942513,1741723851469,-872.89,9.264e-05,2]
[355942514,1741723851478,-551.79,9.264e-05,2]
[355942515,1741723851487,-1402.99,9.264e-05,2]
[355942516,1741723851496,-566.03,9.264e-05,2]
[355942517,1741723851506,-500.0,9.264e-05,2]
[355942518,1741723851515,-500.0,9.264e-05,2]
[355942519,1741723851525,-500.0,9.264e-05,2]
[355942520,1741723851535,-868.93,9.264e-05,2]
[355942521,1741723851544,-500.0,9.264e-05,2]
[355942522,1741723851554,-664.62,9.264e-05,2]
[355942523,1741723851563,-500.0,9.264e-05,2]
[355942524,1741723851573,-2424.82,9.264e-05,2]
[355942525,1741723851583,-500.0,9.264e-05,2]
[355942526,1741723851593,-500.0,9.264e-05,2]
[355942527,1741723851603,-1545.26,9.264e-05,2]
[355942528,1741723851613,-500.0,9.264e-05,2]
[355942529,1741723851622,-591.56,9.264e-05,2]
[355942530,1741723851632,-1217.68,9.264e-05,2]
[355942531,1741723851641,-500.0,9.264e-05,2]
[355942532,1741723851651,-500.0,9.264e-05,2]
[355942533,1741723851661,-641.52,9.264e-05,2]
[355942534,1741723851671,-500.0,9.264e-05,2]
[355942535,1741723851681,-505.8,9.264e-05,2]
[355942536,1741723851690,-500.0,9.264e-05,2]
[355942537,1741723851700,-755.03,9.264e-05,2]
[355942538,1741723851709,-1459.31,9.264e-05,2]
[355942539,1741723851718,-500.0,9.264e-05,2]
[355942540,1741723851729,-500.0,9.264e-05,2]
[355942541,1741723851739,-500.0,9.264e-05,2]
[355942542,1741723851749,-500.0,9.264e-05,2]
[355942543,1741723851759,-500.0,9.264e-05,2]
[355942544,1741723851770,-568.7,9.264e-05,2]
[355942545,1741723851781,-500.0,9.264e-05,2]
[355942546,1741723851791,-675.73,9.264e-05,2]
[355942547,1741723851801,-500.0,9.264e-05,2]
[355942548,1741723851811,-500.0,9.264e-05,2]
[355942549,1741723851823,-704.62,9.264e-05,2]
[355942550,1741723851833,-1056.71,9.264e-05,2]
[355942551,1741723851842,-500.0,9.264e-05,2]
[355942552,1741723851852,-661.44,9.264e-05,2]
[355942553,1741723851862,-500.0,9.264e-05,2]
[355942554,1741723851871,-500.0,9.264e-05,2]
[355942555,1741723851880,-898.9,9.264e-05,2]
[355942556,1741723851890,-500.0,9.264e-05,2]
[355942557,1741723851899,-767.14,9.264e-05,2]
[355942558,1741723851908,-500.0,9.264e-05,2]
[355942559,1741723851922,-500.0,9.264e-05,2]
[355942560,1741723851932,-697.0,9.264e-05,2]
[355942561,1741723851943,-869.79,9.264e-05,2]
[355942562,1741723852017,-1504.55,9.264e-05,2]
[355942563,1741723852028,-525.95,9.264e-05,2]
[355942564,1741723852038,-1613.54,9.264e-05,2]
[355942565,1741723852047,-500.0,9.264e-05,2]
[355942566,1741723852056,-500.0,9.264e-05,2]
[355942567,1741723852066,-892.46,9.264e-05,2]
[355942568,1741723852075,-500.0,9.264e-05,2]
[355942569,1741723852084,-500.0,9.264e-05,2]
[355942570,1741723852094,-500.0,9.264e-05,2]
[355942571,1741723852103,-718.96,9.264e-05,2]
[355942572,1741723852112,-500.0,9.264e-05,2]
[355942573,1741723852122,-500.0,9.264e-05,2]
[355942574,1741723852131,-1550.47,9.264e-05,2]
[355942575,1741723852141,-1453.35,9.264e-05,2]
[355942576,1741723852151,-500.0,9.264e-05,2]
[355942577,1741723852160,-505.69,9.264e-05,2]
[355942578,1741723852173,-526.3,9.264e-05,2]
[355942579,1741723852183,-500.0,9.264e-05,2]
[355942580,1741723852192,-500.0,9.264e-05,2]
[355942581,1741723852202,-1582.74,9.264e-05,2]
[355942582,1741723852211,-500.0,9.264e-05,2]
[355942583,1741723852223,-500.0,9.264e-05,2]
[355942584,1741723852232,-1181.43,9.264e-05,2]
[355942585,1741723852241,-1502.35,9.264e-05,2]
[355942586,1741723852251,-500.0,9.264e-05,2]
[355942587,1741723852260,-500.0,9.264e-05,2]
[355942588,1741723852270,-500.0,9.264e-05,2]
[355942589,1741723852283,-836.0,9.264e-05,2]
[355942590,1741723852292,-599.66,9.264e-05,2]
[355942591,1741723852302,-1269.86,9.264e-05,2]
[355942592,1741723852311,-6728.74,9.264e-05,2]
[355942593,1741723852321,-500.0,9.264e-05,2]
[355942594,1741723852331,-1178.09,9.264e-05,2]
[355942595,1741723852340,-500.0,9.264e-05,2]
[355942596,1741723852349,-2462.91,9.264e-05,2]
[355942597,1741723852360,-672.73,9.264e-05,2]
[355942598,1741723852370,-1200.61,9.264e-05,2]
[355942599,1741723852379,-500.0,9.264e-05,2]
[355942600,1741723852388,-944.41,9.264e-05,2]
[355942601,1741723852398,-1579.74,9.264e-05,2]
[355942602,1741723852407,-676.32,9.264e-05,2]
[355942603,1741723852419,-1314.6,9.264e-05,2]
[355942604,1741723852429,-500.0,9.264e-05,2]
[355942605,1741723852438,-3476.27,9.264e-05,2]
[355942606,1741723852448,-665.64,9.264e-05,2]
[355942607,1741723852457,-1222.38,9.264e-05,2]
[355942608,1741723852467,-500.0,9.264e-05,2]
[355942609,1741723852477,-500.0,9.264e-05,2]
[355942610,1741723852486,-1244.0,9.264e-05,2]
[355942611,1741723852496,-1591.05,9.264e-05,2]
[355942612,1741723852506,-589.44,9.264e-05,2]
[355942613,1741723852515,-500.0,9.264e-05,2]
[355942614,1741723852524,-500.0,9.264e-05,2]
[355942615,1741723852533,-500.0,9.264e-05,2]
[355942616,1741723852542,-2298.87,9.264e-05,2]
[355942617,1741723852551,-582.71817605,9.264e-05,2]
[355942618,1741723852561,-1787.14,9.264e-05,2]
[355942619,1741723852570,-500.0,9.264e-05,2]
[355942620,1741723852579,-849.24,9.264e-05,2]
[355942621,1741723852588,-2252.82,9.264e-05,2]
[355942622,1741723852598,-544.64,9.264e-05,2]
[355942623,1741723852607,-500.0,9.264e-05,2]
[355942624,1741723852616,-617.73,9.264e-05,2]
[355942625,1741723852625,-500.0,9.264e-05,2]
[355942626,1741723852634,-500.0,9.264e-05,2]
[355942627,1741723852643,-500.0,9.264e-05,2]
[355942628,1741723852652,-500.0,9.264e-05,2]
[355942629,1741723852661,-535.81,9.264e-05,2]
[355942630,1741723852670,-1104.24,9.264e-05,2]
[355942631,1741723852679,-795.28,9.264e-05,2]
[355942632,1741723852689,-581.39,9.264e-05,2]
[355942633,1741723852698,-1302.19,9.264e-05,2]
[355942634,1741723852707,-986.7,9.264e-05,2]
[355942635,1741723852716,-279.28615901,9.264e-05,2]
[355942636,1741723852725,-500.0,9.264e-05,2]
[355942637,1741723852734,-500.0,9.264e-05,2]
[355942638,1741723852743,-977.07,9.264e-05,2]
[355942639,1741723852753,-1462.29,9.264e-05,2]
[355942640,1741723852762,-633.2,9.264e-05,2]
[355942641,1741723852771,-1497.11,9.264e-05,2]
[355942642,1741723852781,-2183.29,9.264e-05,2]
[355942643,1741723852790,-4691.48,9.264e-05,2]
[355942644,1741723852799,-500.0,9.264e-05,2]
[355942645,1741723852808,-500.0,9.264e-05,2]
[355942646,1741723852817,-883.71,9.264e-05,2]
[355942647,1741723852827,-1760.07,9.264e-05,2]
[355942648,1741723852836,-1935.21,9.264e-05,2]
[355942649,1741723852845,-500.0,9.264e-05,2]
[355942650,1741723852854,-469.15063959,9.264e-05,2]
[355942651,1741723852882,-1277.09936041,9.264e-05,2]
[355942652,1741723852892,-1339.01,9.264e-05,2]
[355942653,1741723852901,-500.0,9.264e-05,2]
[355942654,1741723852911,-500.0,9.264e-05,2]
[355942655,1741723852921,-416.79103594,9.264e-05,2]
[355942656,1741723852930,-500.0,9.264e-05,2]
[355942657,1741723852941,-1314.23576139,9.264e-05,2]
[355942658,1741723852953,-956.99423861,9.264e-05,2]
[355942659,1741723852962,-92.50576129,9.264e-05,2]
[355942660,1741723852973,-261.9767046,9.264e-05,2]
[355942661,1741723852989,-960.85753411,9.264e-05,2]
[355942662,1741723852999,-500.0,9.264e-05,2]
[355942663,1741723853008,-500.0,9.264e-05,2]
[355942664,1741723853017,-660.67784066,9.264e-05,2]
[355942665,1741723853029,-194.05215934,9.264e-05,2]
[355942666,1741723853038,-790.3,9.264e-05,2]
[355942667,1741723853047,-1203.34784066,9.264e-05,2]
[355942668,1741723853066,-802.70260855,9.264e-05,2]